bitfinex/quotes_BTCUSD_20251120
["timestamp","ask_amount","ask_price","bid_price","bid_amount"]
[1763637322480,0.05,91774.0,91773.0,0.32654531]
[1763637322682,0.05,91774.0,91773.0,0.35926387]
[1763637323316,0.051,91774.0,91773.0,0.35926387]
[1763637328032,0.051,91774.0,91773.0,0.14133485]
[1763637328148,0.051,91774.0,91773.0,0.13024485]
[1763637328560,0.051,91774.0,91773.0,0.03271856]
[1763637330136,0.051,91774.0,91773.0,0.25064758]
[1763637330544,0.051,91774.0,91773.0,0.03271856]
[1763637330731,0.26892664,91774.0,91773.0,0.03271856]
[1763637331689,0.051,91774.0,91773.0,0.03271856]
[1763637332257,0.051,91774.0,91773.0,0.25064758]
[1763637333550,0.051,91774.0,91773.0,0.25114176]
[1763637334206,0.051,91774.0,91773.0,0.35092034]
[1763637334411,0.051,91774.0,91773.0,0.13299132]
[1763637334816,0.051,91774.0,91773.0,0.35092034]
[1763637335440,0.051,91774.0,91773.0,0.37310034]
[1763637337984,0.05,91774.0,91773.0,0.37310034]
[1763637338940,0.05,91774.0,91773.0,0.15671944]
[1763637339148,0.05,91774.0,91773.0,0.18943522]
[1763637339769,0.05,91774.0,91773.0,0.2617348]
[1763637342282,0.05,91774.0,91773.0,0.03271578]
[1763637342484,0.06622,91774.0,91773.0,0.03271578]
[1763637342686,0.30863664,91774.0,91773.0,0.00368]
[1763637344040,0.21793139,91772.0,91771.0,0.03271721]
[1763637344284,0.01089668,91771.0,91766.0,0.05883025]
[1763637344486,0.21794564,91766.0,91765.0,0.05906285]
[1763637344688,0.23416564,91766.0,91765.0,0.0002326]
[1763637345018,0.25865564,91766.0,91765.0,0.03295309]
[1763637345367,0.25865564,91766.0,91765.0,0.0002326]
[1763637345892,0.04071,91766.0,91765.0,0.0002326]
[1763637346094,0.25865564,91766.0,91765.0,0.0002326]
[1763637346704,0.27882299,91774.0,91766.0,0.22884292]
[1763637346929,0.06089633,91774.0,91770.0,0.22883187]
[1763637347352,0.02449,91773.0,91770.0,0.22883187]
[1763637348143,0.02449,91773.0,91771.0,0.2179329]
[1763637348364,0.02449,91773.0,91772.0,0.21793139]
[1763637348723,0.22883367,91770.0,91766.0,0.01089728]
[1763637348945,0.01622,91771.0,91770.0,0.21793582]
[1763637349108,0.03538645,91773.0,91770.0,0.22883262]
[1763637349361,0.23415531,91771.0,91768.0,0.01089704]
[1763637349660,0.01089704,91768.0,91765.0,0.05906285]
[1763637349938,0.01622,91769.0,91767.0,0.21794114]
[1763637350153,0.24242197,91772.0,91769.0,0.01089692]
[1763637350449,0.01622,91768.0,91766.0,0.22884248]
[1763637350663,0.23416546,91767.0,91765.0,0.05906285]
[1763637350865,0.01622,91766.0,91765.0,0.05906285]
[1763637351062,0.25865564,91766.0,91765.0,0.05906285]
[1763637351296,0.04071,91766.0,91765.0,0.05906285]
[1763637351923,0.25865564,91766.0,91765.0,0.05906285]
[1763637352139,0.25965564,91766.0,91765.0,0.05906285]
[1763637352565,0.35536197,91766.0,91765.0,0.0002326]
[1763637352736,0.38808892,91766.0,91765.0,0.0002326]
[1763637353147,0.35536197,91766.0,91765.0,0.0002326]
[1763637353284,0.25965564,91766.0,91765.0,0.0002326]
[1763637353518,0.25865564,91766.0,91765.0,0.0002326]
[1763637353922,0.25965564,91766.0,91765.0,0.0002326]
[1763637354325,0.26065564,91766.0,91765.0,0.0002326]
[1763637357687,0.35646197,91766.0,91765.0,0.0002326]
[1763637357881,0.36014197,91766.0,91765.0,0.0002326]
[1763637359185,0.26433564,91766.0,91765.0,0.0002326]
[1763637369874,0.26065564,91766.0,91765.0,0.0002326]
[1763637370714,0.25965564,91766.0,91765.0,0.0002326]
[1763637371181,0.26065564,91766.0,91765.0,0.0002326]
[1763637371354,0.25965564,91766.0,91765.0,0.0002326]
[1763637371735,0.26065564,91766.0,91765.0,0.0002326]
[1763637373052,0.35646124,91766.0,91765.0,0.0002326]
[1763637373475,0.26065564,91766.0,91765.0,0.0002326]
[1763637375652,0.26433564,91766.0,91765.0,0.0002326]
[1763637379056,0.63943813,91766.0,91765.0,0.0002326]
[1763637379885,0.63843813,91766.0,91765.0,0.0002326]
[1763637380230,0.65972904,91766.0,91765.0,0.0002326]
[1763637380457,0.76889398,91766.0,91765.0,0.0002326]
[1763637381026,0.76689398,91766.0,91765.0,0.0002326]
[1763637381226,0.76889398,91766.0,91765.0,0.0002326]
[1763637381428,0.76989398,91766.0,91765.0,0.0002326]
[1763637381854,0.76889398,91766.0,91765.0,0.0002326]
[1763637382220,0.76989398,91766.0,91765.0,0.0002326]
[1763637384910,0.66072904,91766.0,91765.0,0.0002326]
[1763637388220,0.66072904,91766.0,91751.0,0.00042181]
[1763637388221,0.59308138,91752.0,91751.0,0.00042181]
[1763637388436,0.59308138,91752.0,91703.0,0.07805122]
[1763637388437,0.01090357,91713.0,91703.0,0.07805122]
[1763637388646,0.24602634,91711.0,91695.0,0.00368]
[1763637389072,0.26935634,91711.0,91696.0,0.0109056]
[1763637389307,0.26935634,91711.0,91699.0,0.22900847]
[1763637389512,0.26935634,91711.0,91701.0,1.75755937]
[1763637389728,0.26935634,91711.0,91701.0,1.74665437]
[1763637389936,0.27035634,91711.0,91701.0,1.74665437]
[1763637390173,0.27035634,91711.0,91703.0,0.01090476]
[1763637390354,0.27035634,91711.0,91701.0,1.74665437]
[1763637390797,0.0277,91702.0,91701.0,1.56538169]
[1763637391215,0.05103,91702.0,91701.0,1.56538169]
[1763637395079,0.0277,91702.0,91701.0,1.78348181]
[1763637395413,0.05251,91702.0,91701.0,1.78534399]
[1763637395613,0.0277,91702.0,91701.0,1.78534399]
[1763637396551,0.01138,91702.0,91701.0,1.78534399]
[1763637397466,0.05189,91702.0,91701.0,1.78534399]
[1763637399360,0.01138,91702.0,91701.0,1.78534399]
[1763637401379,0.012,91711.0,91708.0,0.21808348]
[1763637401576,4.207e-05,91713.0,91712.0,0.21807397]
[1763637402403,4.207e-05,91713.0,91712.0,0.22956397]
[1763637402578,4.207e-05,91713.0,91712.0,0.24105397]
[1763637403186,4.207e-05,91713.0,91712.0,0.56405397]
[1763637403536,0.00104207,91713.0,91712.0,0.56405397]
[1763637403951,4.207e-05,91713.0,91712.0,0.56405397]
[1763637404112,0.03662,91753.0,91751.0,0.21798043]
[1763637404278,0.03662,91753.0,91751.0,0.21803098]
[1763637404704,0.08662,91753.0,91751.0,5.055e-05]
[1763637404904,0.06775736,91752.0,91751.0,5.055e-05]
[1763637405325,0.04051,91752.0,91751.0,5.055e-05]
[1763637405545,0.06775736,91752.0,91751.0,5.055e-05]
[1763637406219,0.06875736,91752.0,91751.0,5.055e-05]
[1763637407298,0.28673625,91752.0,91751.0,5.055e-05]
[1763637407508,0.25948889,91752.0,91751.0,5.055e-05]
[1763637407709,0.04151,91752.0,91751.0,0.00045768]
[1763637407934,0.06875736,91752.0,91751.0,0.00045768]
[1763637408340,0.28673625,91752.0,91751.0,0.00045768]
[1763637408523,0.25948889,91752.0,91751.0,0.00045768]
[1763637409914,0.04151,91752.0,91751.0,0.00045768]
[1763637410126,0.28673625,91752.0,91751.0,0.00045768]
[1763637410327,0.25948889,91752.0,91751.0,0.00045768]
[1763637411933,0.04151,91752.0,91751.0,0.00045768]
[1763637412154,0.28673625,91752.0,91751.0,0.00045768]
[1763637412337,0.25948889,91752.0,91751.0,0.00045768]
[1763637414607,0.04151,91752.0,91751.0,0.00045768]
[1763637414818,0.28673625,91752.0,91751.0,0.00045768]
[1763637415018,0.25948889,91752.0,91751.0,0.00045768]
[1763637415228,0.04151,91752.0,91751.0,0.00045768]
[1763637415458,0.02824736,91752.0,91751.0,0.27099694]
[1763637415690,0.001,91752.0,91751.0,0.21843895]
[1763637418254,0.0167,91752.0,91751.0,0.00045768]
[1763637418430,0.04151,91752.0,91751.0,0.00045768]
[1763637418640,0.04151,91752.0,91751.0,0.21843895]
[1763637419037,0.0167,91752.0,91751.0,0.21843895]
[1763637419974,0.04151,91752.0,91751.0,0.00045768]
[1763637421026,0.28673625,91752.0,91751.0,0.00045768]
[1763637421236,0.25948889,91752.0,91751.0,0.00045768]
[1763637422070,0.04151,91752.0,91751.0,0.00045768]
[1763637422295,0.05496375,91752.0,91751.0,0.00045768]
[1763637422498,0.28673625,91752.0,91751.0,0.00045768]
[1763637422651,0.25948889,91752.0,91751.0,0.00045768]
[1763637427458,0.0167,91752.0,91751.0,0.00045768]
[1763637427677,0.001,91752.0,91751.0,0.21843895]
[1763637427894,0.001,91752.0,91751.0,0.00045768]
[1763637428769,0.001,91752.0,91751.0,0.21843895]
[1763637429813,0.001,91752.0,91751.0,0.00045768]
[1763637430015,0.21897889,91752.0,91751.0,0.00045768]
[1763637430545,0.001,91752.0,91751.0,0.00045768]
[1763637431174,0.28554625,91752.0,91751.0,0.00045768]
[1763637431406,0.25829889,91752.0,91751.0,0.00045768]
[1763637432326,0.27860666,91752.0,91751.0,0.00045768]
[1763637433842,0.27862209,91752.0,91751.0,0.00045768]
[1763637435188,0.60162209,91752.0,91751.0,0.00045768]
[1763637435465,0.65372458,91752.0,91751.0,0.00045768]
[1763637435673,0.76288952,91752.0,91751.0,0.00045768]
[1763637436127,0.76388952,91752.0,91751.0,0.00045768]
[1763637436360,0.76288952,91752.0,91751.0,0.00045768]
[1763637436743,0.76388952,91752.0,91751.0,0.00045768]
[1763637436958,0.76288952,91752.0,91751.0,0.00045768]
[1763637437161,0.76388952,91752.0,91751.0,0.00045768]
[1763637437520,0.76756952,91752.0,91751.0,0.00045768]
[1763637437721,0.76656952,91752.0,91751.0,0.00045768]
[1763637438160,0.74624632,91752.0,91751.0,0.00045768]
[1763637438341,0.76655764,91752.0,91751.0,0.00045768]
[1763637439208,0.76755764,91752.0,91751.0,0.00045768]
[1763637442407,0.76755764,91752.0,91711.0,0.01090381]
[1763637442408,0.21806445,91716.0,91715.0,0.00368]
[1763637442628,0.21806445,91716.0,91715.0,0.00380632]
[1763637442839,0.25738445,91716.0,91715.0,0.00380632]
[1763637443668,0.25738445,91716.0,91715.0,0.00580632]
[1763637444091,0.03932,91716.0,91715.0,0.00480632]
[1763637444302,0.25738445,91716.0,91715.0,0.00480632]
[1763637444929,0.25738445,91716.0,91715.0,0.00380632]
[1763637447410,0.03932,91716.0,91715.0,0.22187315]
[1763637447633,0.03932,91716.0,91715.0,0.00380632]
[1763637447836,0.0119,91717.0,91716.0,0.21806445]
[1763637450072,0.01032,91720.0,91718.0,0.21805932]
[1763637450272,0.01032,91720.0,91718.0,0.21805934]
[1763637450473,0.03323,91720.0,91719.0,0.21898831]
[1763637451081,0.25128494,91720.0,91719.0,0.00093099]
[1763637451285,0.04837,91720.0,91719.0,0.00093099]
[1763637451483,0.04837,91720.0,91719.0,0.21898831]
[1763637452491,0.04837,91720.0,91719.0,0.00093099]
[1763637452676,0.26642494,91720.0,91719.0,0.00093099]
[1763637452873,0.04837,91720.0,91719.0,0.00093099]
[1763637453078,0.04837,91720.0,91719.0,0.21898831]
[1763637454901,0.02546,91720.0,91719.0,0.21898831]
[1763637455102,0.04584155,91730.0,91726.0,0.2180385]
[1763637455223,0.26387291,91730.0,91727.0,0.2180383]
[1763637455427,0.03494,91730.0,91727.0,0.2180383]
[1763637455623,0.241416,91737.0,91728.0,0.22893772]
[1763637455922,0.04679989,91744.0,91734.0,0.01090108]
[1763637456125,0.22891371,91738.0,91734.0,0.01090108]
[1763637456325,0.0109006,91738.0,91734.0,0.22892257]
[1763637456558,0.22890509,91742.0,91736.0,0.01090084]
[1763637456697,0.21800571,91741.0,91737.0,0.21801244]
[1763637456908,0.21801014,91739.0,91736.0,0.22891741]
[1763637457123,0.22890993,91740.0,91736.0,0.22891741]
[1763637457473,0.0109006,91738.0,91733.0,0.0109012]
[1763637457854,0.01090048,91739.0,91737.0,0.21801454]
[1763637458064,0.01090037,91740.0,91737.0,0.21801454]
[1763637458294,0.01090025,91741.0,91738.0,0.2289105]
[1763637458497,0.01090025,91741.0,91739.0,0.21800923]
[1763637458709,0.21800355,91742.0,91738.0,0.0109006]
[1763637458909,0.21800577,91741.0,91738.0,0.22891216]
[1763637459120,0.0125,91744.0,91740.0,0.01090037]
[1763637459335,0.21800051,91743.0,91740.0,0.22890728]
[1763637459590,0.01559,91741.0,91740.0,0.01090037]
[1763637460005,0.01559,91741.0,91740.0,0.22890778]
[1763637460134,0.01559,91741.0,91740.0,0.01090037]
[1763637460353,0.01559,91741.0,91740.0,0.22890778]
[1763637460755,0.01559,91741.0,91740.0,0.21800741]
[1763637461008,0.01089977,91745.0,91740.0,0.21800741]
[1763637461009,0.0342987,91754.0,91746.0,0.01089965]
[1763637461210,0.01089906,91751.0,91746.0,0.01089965]
[1763637461419,0.0359,91749.0,91747.0,0.21799008]
[1763637461621,0.01559,91747.0,91746.0,0.01089965]
[1763637461830,0.01559,91747.0,91745.0,0.22889475]
[1763637462251,0.01559,91746.0,91745.0,0.22902107]
[1763637462424,0.0233993,91749.0,91745.0,0.22902107]
[1763637462630,0.0233993,91749.0,91748.0,0.2179884]
[1763637462631,0.0135,91749.0,91748.0,0.2179884]
[1763637462830,0.23148627,91749.0,91747.0,0.21798976]
[1763637463236,0.0135,91749.0,91747.0,0.21798976]
[1763637463637,0.0145,91749.0,91747.0,0.21798976]
[1763637463839,0.0125,91749.0,91747.0,0.21798976]
[1763637464040,0.0125,91749.0,91748.0,0.2179884]
[1763637464241,0.0135,91749.0,91748.0,0.2179884]
[1763637465059,0.01089942,91748.0,91745.0,0.00012632]
[1763637465221,0.06154797,91748.0,91745.0,0.00012632]
[1763637465581,0.23358315,91746.0,91745.0,0.00012632]
[1763637465979,0.25698315,91746.0,91745.0,0.00012632]
[1763637468191,0.21800432,91742.0,91739.0,0.00368]
[1763637468395,0.01559,91740.0,91739.0,0.23259026]
[1763637468616,0.00012657,91742.0,91741.0,0.21800503]
[1763637469447,0.00012657,91742.0,91739.0,0.23359005]
[1763637469660,0.23359741,91740.0,91739.0,0.00368]
[1763637469987,0.01559,91740.0,91739.0,0.00368]
[1763637470162,0.23359741,91740.0,91739.0,0.00368]
[1763637470543,0.23359741,91740.0,91739.0,0.00468]
[1763637471081,0.01559,91740.0,91739.0,0.00468]
[1763637471362,0.23359741,91740.0,91739.0,0.00468]
[1763637471727,0.01559,91740.0,91739.0,0.00368]
[1763637472151,0.01559,91740.0,91739.0,0.22268978]
[1763637472732,0.01559,91740.0,91739.0,0.05459104]
[1763637474303,0.05012657,91742.0,91741.0,0.21800503]
[1763637474506,0.0610267,91742.0,91739.0,0.00468]
[1763637474723,0.05012657,91742.0,91741.0,0.21800503]
[1763637474879,0.21800635,91741.0,91739.0,0.01558048]
[1763637475077,0.07352657,91742.0,91739.0,0.23358993]
[1763637475460,0.07352657,91742.0,91739.0,0.23258926]
[1763637475659,0.07352657,91742.0,91740.0,0.01090711]
[1763637475870,0.07352657,91742.0,91740.0,0.22891276]
[1763637476072,0.21800741,91740.0,91739.0,0.001]
[1763637476275,0.23359741,91740.0,91739.0,0.001]
[1763637476480,0.25699741,91740.0,91739.0,0.001]
[1763637476680,0.21801454,91737.0,91736.0,0.00368]
[1763637476854,0.23360454,91737.0,91736.0,0.00368]
[1763637477020,0.25700454,91737.0,91736.0,0.00368]
[1763637477895,0.25700454,91737.0,91736.0,0.00468]
[1763637478289,0.21802234,91734.0,91732.0,0.04045037]
[1763637478522,0.22892035,91735.0,91732.0,0.04045037]
[1763637478724,0.23052378,91734.0,91732.0,0.04045037]
[1763637478936,0.03429989,91744.0,91736.0,0.01090084]
[1763637479143,0.24140728,91741.0,91737.0,0.22891519]
[1763637479350,0.2180109,91739.0,91736.0,0.22891679]
[1763637479557,0.0109006,91738.0,91732.0,0.04045037]
[1763637479772,0.21801887,91736.0,91733.0,0.22892451]
[1763637479972,0.21802167,91734.0,91732.0,0.04145037]
[1763637480181,0.22892109,91735.0,91732.0,0.04045037]
[1763637480391,0.0109006,91738.0,91735.0,0.01090096]
[1763637480597,0.22891361,91738.0,91735.0,0.22891828]
[1763637480805,0.22891479,91739.0,91735.0,0.01090096]
[1763637481015,0.2180142,91738.0,91735.0,0.22892001]
[1763637481214,0.22891085,91739.0,91736.0,0.21801678]
[1763637481416,0.22891085,91739.0,91736.0,0.21801505]
[1763637481623,0.22891085,91739.0,91735.0,0.22892001]
[1763637481624,0.21801253,91738.0,91735.0,0.22892001]
[1763637482046,0.22891085,91739.0,91736.0,0.21801658]
[1763637482280,0.01089942,91748.0,91741.0,0.21800503]
[1763637482483,0.01089823,91758.0,91741.0,0.22949503]
[1763637482692,0.21798093,91752.0,91741.0,0.22949503]
[1763637482903,0.2405151,91754.0,91741.0,0.22949503]
[1763637482904,0.01089906,91751.0,91741.0,0.22949503]
[1763637483117,0.21797657,91753.0,91741.0,0.22949503]
[1763637483333,0.01089906,91751.0,91741.0,0.28827646]
[1763637483575,0.22888177,91751.0,91741.0,0.22949503]
[1763637483778,0.01089882,91753.0,91741.0,0.22949503]
[1763637483996,0.0225387,91754.0,91741.0,0.28827646]
[1763637484205,0.01164,91754.0,91741.0,0.28827646]
[1763637484409,0.01164,91754.0,91741.0,0.22949503]
[1763637484574,0.22887827,91752.0,91741.0,0.22949503]
[1763637484752,0.01164,91754.0,91741.0,0.24098503]
[1763637485379,0.01164,91754.0,91741.0,0.24198503]
[1763637485585,0.02339835,91757.0,91741.0,0.24198503]
[1763637485822,0.01089846,91756.0,91741.0,0.24198503]
[1763637486022,0.02339835,91757.0,91741.0,0.24198503]
[1763637486230,0.05064422,91757.0,91741.0,0.24198503]
[1763637486468,0.03974587,91757.0,91741.0,0.24198503]
[1763637489077,0.23046745,91757.0,91741.0,0.24198503]
[1763637489422,0.22888042,91751.0,91741.0,0.24198503]
[1763637489625,0.22887167,91755.0,91741.0,0.24198503]
[1763637489825,0.23046911,91757.0,91741.0,0.24198503]
[1763637490043,0.0125,91757.0,91741.0,0.24198503]
[1763637490244,0.03974587,91757.0,91741.0,0.24198503]
[1763637490669,0.22886842,91756.0,91741.0,0.24198503]
[1763637490878,0.0125,91757.0,91741.0,0.24198503]
[1763637491132,0.21796249,91759.0,91741.0,0.24198503]
[1763637491331,0.01089823,91758.0,91741.0,0.27470995]
[1763637491553,0.01089894,91752.0,91741.0,0.27470995]
[1763637491759,0.01089918,91750.0,91741.0,0.27470995]
[1763637491955,0.01089906,91751.0,91741.0,0.27470995]
[1763637492295,0.0108993,91749.0,91741.0,0.27470995]
[1763637492502,0.22888067,91751.0,91741.0,0.27470995]
[1763637493023,0.228878,91752.0,91741.0,0.27470995]
[1763637493217,0.01089894,91752.0,91741.0,0.27470995]
[1763637493425,0.01089811,91759.0,91741.0,0.27470995]
[1763637493634,0.21796599,91758.0,91741.0,0.27470995]
[1763637493842,0.22886743,91757.0,91741.0,0.27470995]
[1763637494046,0.01089882,91753.0,91741.0,0.27470995]
[1763637494716,0.22887579,91753.0,91741.0,0.27470995]
[1763637494878,0.01089882,91753.0,91741.0,0.27470995]
[1763637495076,0.01089906,91751.0,91741.0,0.27470995]
[1763637495237,0.01089918,91750.0,91741.0,0.27470995]
[1763637495882,0.22888126,91751.0,91741.0,0.27470995]
[1763637496085,0.21922706,91763.0,91741.0,0.27470995]
[1763637496284,0.21922706,91763.0,91741.0,0.59770995]
[1763637496285,0.00127225,91763.0,91741.0,0.59770995]
[1763637496489,0.03238943,91742.0,91741.0,0.74510995]
[1763637496692,0.00127225,91763.0,91762.0,0.21795514]
[1763637496892,0.00127225,91763.0,91762.0,0.2936628]
[1763637497369,0.00127225,91763.0,91762.0,0.3053028]
[1763637498026,0.00127225,91763.0,91762.0,0.3063028]
[1763637498340,0.00127225,91763.0,91762.0,0.3053028]
[1763637498761,0.00127225,91763.0,91762.0,0.3063028]
[1763637500379,0.00127225,91763.0,91762.0,0.36500657]
[1763637500806,0.00127225,91763.0,91762.0,0.68800657]
[1763637500955,0.00127225,91763.0,91762.0,0.6293028]
[1763637503087,0.00127225,91763.0,91762.0,0.6256228]
[1763637503283,0.00127225,91763.0,91762.0,0.6178128]
[1763637503773,0.00127225,91763.0,91762.0,0.6293028]
[1763637507270,0.00127225,91763.0,91762.0,0.6141328]
[1763637507485,0.00127225,91763.0,91762.0,0.6178128]
[1763637507928,0.01755225,91763.0,91762.0,0.06168766]
[1763637508132,0.01755225,91763.0,91762.0,0.00468]
[1763637508133,0.25811501,91763.0,91762.0,0.00468]
[1763637509667,0.25811501,91763.0,91762.0,0.00368]
[1763637509938,0.04016225,91763.0,91762.0,0.00368]
[1763637510483,0.25811501,91763.0,91762.0,0.00368]
[1763637511499,0.21796546,91758.0,91754.0,0.0108987]
[1763637511712,0.01089811,91759.0,91755.0,0.00368]
[1763637511713,0.01089846,91756.0,91755.0,0.00368]
[1763637511908,0.21796981,91756.0,91755.0,0.00368]
[1763637512104,0.01089835,91757.0,91755.0,0.00368]
[1763637512105,0.03614,91758.0,91755.0,0.00368]
[1763637512459,0.01169,91758.0,91756.0,0.21796715]
[1763637512585,0.00127225,91763.0,91758.0,0.2179644]
[1763637512785,0.00127225,91763.0,91761.0,0.21795752]
[1763637513072,0.00127225,91763.0,91762.0,0.28938708]
[1763637513225,0.00127225,91763.0,91762.0,0.06053766]
[1763637513402,0.00127225,91763.0,91762.0,0.28938684]
[1763637513609,0.00127225,91763.0,91762.0,0.06053766]
[1763637513813,0.00127225,91763.0,91762.0,0.07843418]
[1763637514016,0.00127225,91763.0,91762.0,0.29638932]
[1763637514948,0.00127225,91763.0,91762.0,0.28489932]
[1763637516012,0.00127225,91763.0,91762.0,0.29638932]
[1763637516964,0.00127225,91763.0,91762.0,0.30787932]
[1763637517170,0.00127225,91763.0,91762.0,0.08992418]
[1763637517378,0.00127225,91763.0,91762.0,0.29638932]
[1763637517579,0.00127225,91763.0,91762.0,0.07843418]
[1763637517923,0.00127225,91763.0,91762.0,0.01789652]
[1763637518146,0.21922501,91763.0,91762.0,0.01789652]
[1763637518973,0.00127225,91763.0,91762.0,0.23585166]
[1763637519173,0.21922501,91763.0,91762.0,0.01789652]
[1763637519605,0.21795752,91761.0,91760.0,0.05866453]
[1763637519981,0.23012264,91763.0,91761.0,0.21795522]
[1763637519982,0.00127225,91763.0,91761.0,0.21795522]
[1763637520203,0.01216988,91763.0,91762.0,0.04904766]
[1763637520719,0.23012305,91763.0,91762.0,0.04904766]
[1763637521281,0.24676305,91763.0,91762.0,0.04904766]
[1763637521455,0.21796702,91757.0,91756.0,0.05866453]
[1763637521675,0.21797414,91754.0,91753.0,0.05866453]
[1763637521898,0.21797414,91754.0,91753.0,0.06234453]
[1763637522674,0.23461414,91754.0,91753.0,0.06234453]
[1763637523382,0.01664,91754.0,91753.0,0.06234453]
[1763637523602,0.01664,91754.0,91753.0,0.28132105]
[1763637523814,0.01664,91754.0,91753.0,0.06334453]
[1763637524018,0.01664,91754.0,91753.0,0.28132105]
[1763637524220,0.21795977,91761.0,91755.0,0.21797177]
[1763637524425,0.03659988,91763.0,91755.0,0.22887035]
[1763637524426,0.21796467,91758.0,91755.0,0.22887035]
[1763637524839,0.03659988,91763.0,91759.0,0.01089811]
[1763637524840,0.00127225,91763.0,91759.0,0.01089811]
[1763637525024,0.00127225,91763.0,91762.0,0.2784928]
[1763637525861,0.00127225,91763.0,91762.0,0.2899828]
[1763637526551,0.00127225,91763.0,91762.0,0.2784928]
[1763637526991,0.00131443,91763.0,91762.0,0.2784928]
[1763637529215,0.00131443,91763.0,91762.0,0.04904766]
[1763637529425,0.01089787,91761.0,91757.0,0.21796678]
[1763637529634,0.01089787,91761.0,91758.0,0.00368]
[1763637530051,0.2288564,91761.0,91758.0,0.00368]
[1763637530252,0.01089846,91756.0,91751.0,0.01089906]
[1763637530546,0.22886725,91758.0,91755.0,0.22887035]
[1763637530754,0.22886725,91758.0,91757.0,0.001]
[1763637531135,0.01245,91759.0,91757.0,0.001]
[1763637531341,0.23041286,91759.0,91757.0,0.001]
[1763637531592,0.21796464,91758.0,91757.0,0.001]
[1763637531901,0.25903464,91758.0,91757.0,0.00468]
[1763637532106,0.25903464,91758.0,91757.0,0.001]
[1763637532396,0.25903464,91758.0,91757.0,0.00368]
[1763637533229,0.23460464,91758.0,91757.0,0.00368]
[1763637533588,0.25903464,91758.0,91757.0,0.00368]
[1763637536675,0.01245,91759.0,91757.0,0.22164702]
[1763637536821,0.01245,91759.0,91758.0,0.21796464]
[1763637537224,0.00131443,91763.0,91760.0,0.22885586]
[1763637537423,0.00131443,91763.0,91762.0,0.21795514]
[1763637537619,0.00131443,91763.0,91761.0,0.21795683]
[1763637537826,0.001,91759.0,91757.0,0.00368]
[1763637538027,0.21796464,91758.0,91757.0,0.00368]
[1763637538268,0.24705464,91758.0,91757.0,0.00368]
[1763637538482,0.27148464,91758.0,91757.0,0.00368]
[1763637539982,0.05352,91758.0,91757.0,0.00368]
[1763637540238,0.01245,91758.0,91757.0,0.22164702]
[1763637540375,0.21796067,91760.0,91757.0,0.23254526]
[1763637540584,0.01221206,91763.0,91758.0,0.23975929]
[1763637540895,0.02855852,91763.0,91760.0,0.01089799]
[1763637541089,0.00131443,91763.0,91760.0,0.01089799]
[1763637541286,0.00131443,91763.0,91762.0,0.21795514]
[1763637541884,0.00131443,91763.0,91762.0,0.2784928]
[1763637542751,0.00131443,91763.0,91762.0,0.2670028]
[1763637543195,0.21926719,91763.0,91762.0,0.04904766]
[1763637543406,0.01089787,91761.0,91757.0,0.00368]
[1763637543610,0.21796464,91758.0,91757.0,0.00368]
[1763637543814,0.23313464,91758.0,91752.0,0.21797779]
[1763637543986,0.01089858,91755.0,91753.0,0.00368]
[1763637544219,0.01129,91759.0,91758.0,0.21796464]
[1763637544441,0.2192672,91763.0,91759.0,0.21796227]
[1763637544683,0.21795722,91762.0,91757.0,0.21796702]
[1763637544908,0.21797414,91754.0,91753.0,0.00368]
[1763637545037,0.21797035,91756.0,91753.0,0.23255495]
[1763637545246,0.22886881,91756.0,91753.0,0.00368]
[1763637545461,0.21797414,91754.0,91753.0,0.00368]
[1763637545713,0.23314414,91754.0,91753.0,0.00368]
[1763637545885,0.03948,91754.0,91753.0,0.00368]
[1763637546082,0.01129,91757.0,91755.0,0.21797116]
[1763637546288,0.02724439,91762.0,91761.0,0.21795752]
[1763637546499,0.01260443,91763.0,91760.0,0.22885351]
[1763637546763,0.00131443,91763.0,91761.0,0.21795521]
[1763637546969,0.21795955,91761.0,91758.0,0.21796355]
[1763637547172,0.03691443,91763.0,91759.0,0.22885784]
[1763637547373,0.03691443,91763.0,91760.0,0.22885589]
[1763637547511,0.25780145,91763.0,91761.0,0.21795653]
[1763637547707,0.24145499,91763.0,91759.0,0.22886013]
[1763637547904,0.01089846,91756.0,91751.0,0.01089906]
[1763637548102,0.01089846,91756.0,91751.0,0.22887842]
[1763637548103,0.21797177,91755.0,91751.0,0.22887842]
[1763637548391,0.23314414,91754.0,91750.0,0.21798338]
[1763637548567,0.25745414,91754.0,91751.0,0.01089906]
[1763637548798,0.01517,91751.0,91748.0,0.04904766]
[1763637548949,0.01517,91751.0,91749.0,0.00368]
[1763637549159,0.01517,91751.0,91750.0,0.21798365]
[1763637549160,0.03948,91751.0,91750.0,0.21798365]
[1763637549473,0.26795115,91764.0,91753.0,0.01089882]
[1763637549474,0.21796932,91757.0,91753.0,0.01089882]
[1763637549716,0.21797652,91753.0,91751.0,0.01089906]
[1763637549886,0.21797652,91753.0,91750.0,0.21798139]
[1763637549887,0.21797889,91752.0,91750.0,0.21798139]
[1763637550105,0.22887534,91753.0,91750.0,0.21798139]
[1763637550325,0.21797264,91755.0,91752.0,0.21797687]
[1763637550526,0.00131443,91763.0,91762.0,0.21795514]
[1763637550733,0.00131443,91763.0,91762.0,0.32309916]
[1763637550866,0.00131443,91763.0,91762.0,0.6166628]
[1763637551866,0.00131443,91763.0,91762.0,0.6176628]
[1763637555586,0.01129,91799.0,91798.0,0.21786967]
[1763637555799,0.01133218,91799.0,91798.0,0.22154967]
[1763637556231,0.00108846,91799.0,91798.0,0.00368]
[1763637556437,0.00108846,91799.0,91798.0,0.01517]
[1763637556648,0.00108846,91799.0,91798.0,0.02666]
[1763637556861,0.00208846,91799.0,91798.0,0.02666]
[1763637557063,0.00208846,91799.0,91798.0,0.01517]
[1763637557283,0.00108846,91799.0,91798.0,0.23303967]
[1763637558742,0.00108846,91799.0,91798.0,0.24452967]
[1763637559812,0.00108846,91799.0,91798.0,0.56752967]
[1763637561219,0.00108846,91799.0,91798.0,0.56852967]
[1763637562300,0.00108846,91799.0,91798.0,0.56952967]
[1763637564186,0.01129,91836.0,91830.0,0.01088968]
[1763637564396,0.01171202,91836.0,91833.0,0.22867432]
[1763637564613,0.01171202,91836.0,91835.0,0.21778189]
[1763637565035,0.00042202,91836.0,91835.0,0.21778189]
[1763637565242,0.00042202,91836.0,91835.0,0.24076189]
[1763637565445,0.00042202,91836.0,91835.0,0.24444189]
[1763637565668,0.00142202,91836.0,91835.0,0.24444189]
[1763637566097,0.00142202,91836.0,91835.0,0.23295189]
[1763637566316,0.00142202,91836.0,91835.0,0.01517]
[1763637566980,0.00042202,91836.0,91835.0,0.01517]
[1763637567621,0.00042202,91836.0,91835.0,0.00368]
[1763637567836,0.01088909,91835.0,91831.0,0.01149]
[1763637568043,0.22867111,91835.0,91832.0,0.00368]
[1763637568253,0.00042202,91836.0,91833.0,0.22867564]
[1763637568458,0.00042202,91836.0,91834.0,0.21778224]